Cogmind - Beta 9.6 @@@ ROGUE MODE // 2020.07.07 @ 15:33:12 Player: Granite Result: Destroyed by G-34 Mercenary with Small Laser Performance ------------- Evolutions (0) 0 Regions Visited (1) 200 Robots Destroyed (12) 60 Value Destroyed (163) 163 Prototype IDs (0) 0 Alien Tech Used (0) 0 Bonus (0) 0 TOTAL SCORE: 423 Bonus ------- None Cogmind --------- Core Integrity 0/250 Matter 224/300 Energy 123/125 System Corruption 5% Temperature Cool (7) Movement Walking (120) Location -10/Materials Parts ------- > --- POWER (1) -------- Light Ion Engine > --- PROPULSION (2) --- Aluminum Leg > --- UTILITY (2) ------ Small Storage Unit > --- WEAPON (2) ------- (None) > --- INVENTORY (6) ---- Wheel Wheel Seismic Analyzer Peak State ------------ > --- POWER ------------ Ion Engine > --- PROPULSION ------- Wheel Compact Wheel > --- UTILITY ---------- Small Storage Unit Improved Terrain Scanner > --- WEAPON ----------- Assault Rifle Light Assault Rifle > --- INVENTORY -------- Light Ion Engine Wheel Seismic Analyzer Medium Laser Mining Laser [Rating: 8] Favorites ----------- Power Ion Engine Engine Ion Engine Propulsion Aluminum Leg Leg Aluminum Leg Wheel Wheel Utility Small Storage Unit Device Improved Terrain Scanner Storage Small Storage Unit Weapon Assault Rifle Energy Gun Medium Laser Ballistic Gun Assault Rifle Special Weapon Mining Laser Build | -11 -10 ------- Run | Scr Mat Slots Evolved . | . . Power . | . . Propulsion . | . . Utility . | . . Weapon . | . . Parts Attached 13 | 7 6 Power 2 | 1 1 Engine 2 | 1 1 Core . | . . Reactor . | . . Propulsion 4 | 2 2 Treads . | . . Leg 2 | . 2 Wheel 2 | 2 . Hover . | . . Flight . | . . Utility 2 | 2 . Device 1 | 1 . Storage 1 | 1 . Processor . | . . Hackware . | . . Protection . | . . Artifact . | . . Weapon 5 | 2 3 Energy Gun 1 | . 1 Energy Cannon . | . . Ballistic Gun 3 | 2 1 Ballistic Cannon . | . . Launcher . | . . Special Weapon 1 | . 1 Impact Weapon . | . . Slashing Weapon . | . . Piercing Weapon . | . . Special Melee Weapon . | . . Unidentified Prototypes . | . . Parts Lost 7 | . 7 Power 1 | . 1 Propulsion 1 | . 1 Utility 1 | . 1 Weapon 4 | . 4 Highest Loss Streak 3 | . 3 Average Slot Usage (%) 89 | . 89 Engine 14 | . 14 Leg 16 | . 16 Wheel 11 | . 11 Device 5 | . 5 Storage 14 | . 14 Energy Gun 2 | . 2 Ballistic Gun 18 | . 18 Special Weapon 5 | . 5 Naked Turns . | . . Heaviest Build 13 | 13 13 Greatest Support 26 | 26 26 Greatest Overweight (x) 1 | 1 1 Average Overweight (x) . | . . Largest Inventory Capacity 6 | 6 6 Average Capacity 5 | 5 6 Most Carried 6 | 6 6 Average Carried 4 | 3 4 Final Capacity 6 | 6 6 Final Carried 5 | 5 3 Class Distribution -------------------- 100% | Mutant Dominant Class ---------------- Mutant | -10/Materials Resources | -11 -10 ----------- Run | Scr Mat Matter Collected 352 | 272 80 Remotely . | . . Salvage Created 266 | 59 207 Parts 28 | 9 19 Haulers Intercepted . | . . Recyclers Shooed . | . . Parts Field Recycled . | . . Retrieved Matter . | . . Parts Self-Destructed . | . . Prevented . | . . Kills | -11 -10 ------- Run | Scr Mat Combat Hostiles Destroyed 8 | . 8 Guns 8 | . 8 Classes Destroyed 4 | 1 3 Worker 1 | . 1 Tunneler 3 | 3 . Swarmer 6 | . 6 Grunt 2 | . 2 Best Kill Streak 4 | 2 4 Combat Bots Only 4 | . 4 Max Kills in Single Turn 1 | 1 1 Gunslinging . | . . Exploded . | . . Melee . | . . Uniques/NPCs Destroyed . | . . Combat | -11 -10 -------- Run | Scr Mat Damage Taken 900 | . 900 Core 250 | . 250 Absorbed by Shields . | . . Core Remaining (%) 100 | 100 . Volleys Fired 42 | 6 36 Largest 2 | 2 2 Hottest 120 | 40 120 Shots Fired 81 | 12 69 Gun 76 | 12 64 Cannon . | . . Launcher . | . . Special 5 | . 5 Kinetic 69 | 12 57 Thermal 12 | . 12 Explosive . | . . Electromagnetic . | . . Robot Hit Streak 14 | 3 14 Robot Miss Streak 5 | 1 5 Penetration Max . | . . Secondary Targets 1 | . 1 Max Gunslinging Chain 1 | . 1 Shots Hit Robots 47 | 8 39 Core Hits 18 | 4 14 Critical Hits . | . . Critical Kills . | . . Critical Parts Destroyed . | . . Melee Attacks . | . . Impact . | . . Slashing . | . . Piercing . | . . Sneak Attacks . | . . Combat Hostiles . | . . Follow-up Attacks . | . . Damage Inflicted 518 | 100 418 Guns 518 | 100 418 Cannons . | . . Explosions . | . . Melee . | . . Ramming . | . . Kinetic 445 | 100 345 Thermal 73 | . 73 Explosive . | . . Electromagnetic . | . . Impact . | . . Slashing . | . . Piercing . | . . Highest Corruption 5 | . 5 Average Corruption 5 | . 5 Corruption Purged . | . . Effects 7 | . 7 Message Errors 2 | . 2 Energy Discharges 1 | . 1 Parts Rejected 1 | . 1 Data Loss (minor) 1 | . 1 Targeting Errors 2 | . 2 Overload Shots . | . . Overflow Damage . | . . Projectiles . | . . Explosions . | . . Melee . | . . Knockbacks . | . . Impact . | . . Kinetic . | . . Secondary . | . . Self-Inflicted Damage . | . . Shots . | . . Rammed . | . . Targets Rammed . | . . Kicked . | . . Crushed . | . . Highest Temperature 92 | . 92 Average Temperature 29 | . 29 Received Heat Transfer 108 | . 108 Siege Activations . | . . Robots Corrupted . | . . Combat Hostiles . | . . Parts Fried . | . . Impact Corruptions . | . . Robots Melted . | . . Combat Hostiles . | . . Parts Melted 1 | . 1 Heat Transferred 222 | . 222 Parts Sabotaged . | . . Parts Stolen . | . . Parts Stripped . | . . Power Chain Reactions . | . . Missiles Intercepted . | . . Alert | -11 -10 ------- Run | Scr Mat Peak Influence 169 | 15 169 Average Influence 77 | 4 111 Maximum Alert Level . | . . Low Security (%) 100 | 100 100 Level 1 . | . . Level 2 . | . . Level 3 . | . . Level 4 . | . . Level 5 . | . . High Security . | . . Max Security . | . . Squads Dispatched 1 | . 1 Investigation . | . . Extermination . | . . Reinforcement 1 | . 1 Assault . | . . Garrison . | . . Intercept . | . . Construction Impeded . | . . Haulers Reinforced . | . . Stealth | -11 -10 --------- Run | Scr Mat Distress Signals 1 | . 1 Communications Jammed . | . . Distress Signals . | . . Times Spotted 13 | . 13 Peak Tracking Total 6 | . 6 Tactical Retreats 1 | . 1 Traps | -11 -10 ------- Run | Scr Mat Traps Triggered . | . . Indirectly . | . . Trap Hack Attempts . | . . Triggered . | . . Disarmed . | . . Reprogrammed . | . . Reused . | . . Traps Extracted . | . . Installed . | . . Triggered . | . . Machines | -11 -10 ---------- Run | Scr Mat Machines Disabled . | . . Max in Single Turn . | . . Machines Sabotaged . | . . Garrisons Compromised . | . . Overloaded Fab Kills . | . . Fab Network Shutdowns . | . . Hacking | -11 -10 --------- Run | Scr Mat Machines Accessed 2 | . 2 Terminals 2 | . 2 Fabricators . | . . Repair Stations . | . . Recycling Units . | . . Scanalyzers . | . . Garrison Access . | . . Total Hacks 4 | . 4 Successful 2 | . 2 Failed 2 | . 2 Catastrophic . | . . Database Lockouts . | . . Manual . | . . Terminals 4 | . 4 Fabricators . | . . Repair Stations . | . . Recycling Units . | . . Scanalyzers . | . . Garrison Access . | . . Terminal Hacks 2 | . 2 Locate Traps 1 | . 1 Hauler Manifests 1 | . 1 Fabricator Hacks . | . . Repair Station Hacks . | . . Recycling Unit Hacks . | . . Scanalyzer . | . . Garrison Access Hacks . | . . Unauthorized Hacks . | . . Terminals . | . . Fabricators . | . . Repair Stations . | . . Recycling Units . | . . Scanalyzers . | . . Garrison Access . | . . Data Cores Recovered . | . . Used . | . . Hacking Detections 1 | . 1 Full Trace Events . | . . Feedback Events . | . . Feedback Blocked . | . . Robot Schematics Acquired . | . . Robots Built . | . . Matter . | . . Time . | . . Total Robot Build Rating . | . . Part Schematics Acquired . | . . Parts Built . | . . Matter . | . . Time . | . . Total Part Build Rating . | . . Parts Repaired . | . . Time . | . . Parts Recycled . | . . Recycled Matter . | . . Retrieved Matter . | . . Retrieved Components . | . . Parts Scanalyzed . | . . Part Schematics Acquired . | . . Parts Damaged . | . . Bothacking | -11 -10 ------------ Run | Scr Mat Used RIF Installer . | . . Robots Hacked . | . . Non-combat . | . . Combat . | . . Robot Hacks Applied . | . . Relay Couplers Released . | . . Robots Rewired . | . . Allies Hacked . | . . Hacks Repelled . | . . Allies | -11 -10 -------- Run | Scr Mat Total Allies . | . . Largest Group . | . . Highest-Rated Group . | . . Highest-Rated Ally . | . . Total Orders . | . . Ally Attacks . | . . Total Damage . | . . Kills . | . . Allies Corrupted . | . . Allies Melted . | . . Intel | -11 -10 ------- Run | Scr Mat Robot Analysis Total . | . . Derelict Logs Recovered . | . . Drone Launches . | . . Drone Recoveries . | . . Exploration | -11 -10 ------------- Run | Scr Mat Turns Passed 369 | 116 253 Spaces Moved 208 | 90 118 Core 7 | 7 . Treads . | . . Legs 89 | . 89 Wheels 112 | 83 29 Hover . | . . Flight . | . . Fastest Speed 50 | 50 90 Average Speed 103 | 89 113 Slowest Speed 150 | 100 150 Overloaded Moves . | . . Propulsion Burnouts . | . . Robots Hopped . | . . Cave-ins Triggered 1 | . 1 Exploration Rate (%) 11 | 4 18 Regions Visited 1 Branch Regions . Pre-discovered Areas . | . . Known Exits Taken . | . . Unknown Exits Taken 1 | 1 . Scrap Searched . | . . Spaces Dug 2 | . 2 Terrain Destroyed 3 | . 3 Melee . | . . Projectile 3 | . 3 AOE . | . . Actions | -11 -10 --------- Run | Scr Mat Total 278 | 114 164 Wait 2 | . 2 Move 207 | 89 118 Hop . | . . Pick Up 14 | 12 2 Fast Attach . | . . Attach 11 | 7 4 Detach . | . . Swap 2 | . 2 Drop . | . . Fire 42 | 6 36 Melee . | . . Ram . | . . Kick . | . . Crush . | . . Escape Stasis . | . . Rewire . | . . Trap . | . . Miscellaneous . | . . Route ------- -11/Scrapyard -10/Materials History --------- Turn | Location | Event 8 | -11/Scrapyard | Discovered new exit (range 16) 117 | -11/Scrapyard | Entered Materials 211 | -10/Materials | Crushed by falling debris 211 | -10/Materials | Core integrity fell below 50% 211 | -10/Materials | Core integrity fell below 20% 303 | -10/Materials | Build established: Mutant 355 | -10/Materials | Lost 3 parts (1p2w) 370 | -10/Materials | Destroyed by G-34 Mercenary with Small Laser Last Messages --------------- 00332_ K-01 Serf cleans the Fusion Modulator. 00333_ K-01 Serf collects debris. 00333_ R-06 Scavenger collects Lgt. Assault Rifle. 00335_ K-01 Serf destroyed. 00336_ K-01 Serf collects debris. 00336_ R-06 Scavenger collects Flight Unit. 00337_ System corrupted: Lgt. Assault Rifle targeting data glitched. 00338_ System corrupted: Energy discharge (-29). 00339_ R-06 Scavenger collects Lgt. Assault Rifle. 00340_ K-01 Serf collects debris. 00344_ R-06 Scavenger collects Wheel. 00346_ Flight Unit melted. 00346_ S-10 Pest destroyed. 00348_ K-01 Serf collects debris. 00367_ System corrupted: Aluminum Leg rejected. 00368_ Lgt. Assault Rifle destroyed. 00369_ K-01 Serf collects debris. 00369_ Med. Laser destroyed. 00369_ K-01 Serf collects debris. 00370_ Acquired 10 matter. Map ----- +----------------------------------------------------+ | ?????????????????????????????????????????????????? | | ?????????????????????????????????????????????????? | | ?????????????############??#########?????????????? | | ????????????## #??# """ #??????????????? | | ????????????#T #??# """ ##?????????????? | | ????????????## #??# """ ##?????????????? | | ?????????????# #### #??# #??????????????? | | ?????????????# #??# #??#* #??????????????? | | ?????????????# #??# #??# #??#####???????? | | ?????????????# #??# #######+#######T###?????#? | | ?????????????# #??# #???#?#? | | ?????????????# #??# ##?#???? | | ?????????????# #??# #??????? | | ?????????????# #??### ###+######/####??????? | | ?????????????# #????# #=?????#! #??????? | | ????????????? #????# # ???# #?#????? | | ?????????^^^? #????# # ##[ """#??????? | | ???????????^? #????# # """ "# =="""#??????? | | ????????????? #????# # """ ##*[["""#??????? | | ?????????^?? ?????# # ""???#%== #??????? | | ???????????^? "" ?????# # ?????#+######??????? | | ??????????????????????# = #??????#=#???????????? | | ??????????????????????# k #??????#%#?????? ????? | | ?????????????????????##% #??????#%#???????????? | | ?????????????????######g* ######## #? ????????? | | ?????????? k o w u %=%@ #? ???? #?#?? | | ????????????????### g #??????????? | | ??????????????????# ! +?"???????#? | | ??????????????????# """ """u # ?"???#???? | | ??????????????????# """ """ #????? ??#?? | | ??????????????????# """ """ k #? ??? ????? | | ??????????????????#" # ???????#?? | | ??????????????????#T !! # ?????????? | | ??????????????????#" !! #??#???????? | | ??????????????????# ??? #??????????? | | ??????????????????# ?? ??????????? | | ??????????????????# ????############/##??????????? | | ???????????????????#???????????????? ????????????? | | ???????????????????????????????????? ????????????? | | ?????????????????????????????????????????????????? | | ?????????????????????????????????????????????????? | | ?????????????????????????????????????????????????? | | ?????????????????????????????????????????????????? | | ?????????????????????????????????????????????????? | | ?????????????????????????????????????????????????? | | ?????????????????????????????????????????????????? | | ?????????????????????????????????????????????????? | | ?????????????????????????????????????????????????? | | ?????????????????????????????????????????????????? | | ?????????????????????????????????????????????????? | +----------------------------------------------------+ Best States ------------- Heat Dissipation 25 Energy Generation 10 Energy Capacity 250 Matter Stores 300 Matter Capacity 300 Sight Range 16 Terrain Scan Range 16 Terrain Scan Density 10 Evasion (%) 42 Item Schematics ----------------- None Robot Schematics ------------------ None Fabricated ------------ Nothing Alien Tech Used ----------------- None Achievements -------------- None Challenges ------------ None Game ------ Seed ZioniteRemoteDrive Manual? 0 Play Time 00:04:48 Cumulative 29.2 hours Start 2020.07.07 @ 15:28:09 End 2020.07.07 @ 15:33:12 Sessions 1 Manual Loads 0 Difficulty Rogue Special Mode None Game No. 25 Rogue 25 Adventurer 0 Explorer 0 Win Type - Total 0 Types 0/0/0/0/0/0/0 Lore% 34 Gallery% 33 Achievement% 29 Wizard Run 0 Options --------- ASCII 0 Keyboard 0 Movement Mouse Keybinds 0 Fullscreen 1 Font 24/Smallcaps Map View 76x50 Tactical HUD 1 Map Filters NONE Filters NONE Steam 1 RUN: bf756a7b-1f9b-4592-acd8-c81af1e85824